bitfinex-derivatives/quotes_SOLF0:USTF0_20251122
["timestamp","ask_amount","ask_price","bid_price","bid_amount"]
[1763824912286,3.21,127.03,127.02,0.05397623]
[1763824912685,3.21,127.03,126.98,3.19]
[1763824913303,3.21,127.02,126.96,16.58]
[1763824913503,3.21,127.01,126.95,10.50171995]
[1763824913692,3.21,126.98,126.97,0.05760192]
[1763824914093,3.27015228,126.99,126.97,0.05760192]
[1763824914608,0.06015228,126.99,126.97,3.24760192]
[1763824917005,3.27015228,126.99,126.97,0.05760192]
[1763824919102,0.06015228,126.99,126.97,0.05760192]
[1763824919994,0.06015228,126.99,126.97,3.24760192]
[1763824920295,3.27015228,126.99,126.97,0.05760192]
[1763824921709,0.06015228,126.99,126.97,3.24760192]
[1763824922095,0.06015228,126.99,126.97,7.15030192]
[1763824922294,16.58,127.03,126.98,3.19]
[1763824922496,3.21,127.05,126.99,3.19]
[1763824922693,3.21,127.07,127.0,3.19]
[1763824922893,3.21,127.07,127.01,3.19]
[1763824923103,10.2977,127.07,127.01,10.2805]
[1763824923501,0.05638181,127.05,127.03,0.05322592]
[1763824923698,3.26638181,127.05,127.03,0.05322592]
[1763824924610,3.21,127.04,127.03,0.05322592]
[1763824924802,0.05638181,127.05,127.03,0.05322592]
[1763824925298,3.26638181,127.05,127.03,0.05322592]
[1763824925698,0.05638181,127.05,127.03,3.21322592]
[1763824927107,0.05638181,127.05,127.03,10.30262592]
[1763824927306,3.22,127.11,127.04,3.16]
[1763824927804,3.22,127.1,127.05,3.16]
[1763824928004,3.22,127.1,127.02,10.47171995]
[1763824928404,3.27300587,127.07,127.05,0.05538345]
[1763824929793,0.05300587,127.07,127.05,0.05538345]
[1763824929998,0.05300587,127.07,127.05,3.21538345]
[1763824930194,0.05300587,127.07,127.05,0.05538345]
[1763824931804,3.27300587,127.07,127.05,0.05538345]
[1763824932906,10.36050587,127.07,127.05,0.05538345]
[1763824933298,3.22,127.06,127.05,0.05538345]
[1763824933901,3.22,127.04,127.01,7.31171995]
[1763824934210,3.22,127.04,127.0,10.47171995]
[1763824934599,3.22,127.03,127.0,7.31171995]
[1763824934805,3.22,127.03,126.99,7.31171995]
[1763824935009,3.27145246,127.03,127.0,0.05901331]
[1763824935208,3.22,127.01,127.0,0.05901331]
[1763824937710,3.22,127.02,127.0,0.05901331]
[1763824938308,10.3103,127.02,127.0,0.05901331]
[1763824938510,3.22,127.01,127.0,0.05901331]
[1763824941113,19.82,127.01,127.0,0.05901331]
[1763824941610,3.22,126.99,126.95,10.47171995]
[1763824942411,0.0602233,126.98,126.96,0.05895097]
[1763824944306,3.2802233,126.98,126.96,0.05895097]
[1763824944910,19.8,126.97,126.96,0.05895097]
[1763824945620,19.8,126.97,126.92,10.47171995]
[1763824945621,3.22,126.96,126.92,10.47171995]
[1763824946623,0.05765477,126.95,126.94,10.47171995]
[1763824946820,0.05765477,126.95,126.94,7.31171995]
[1763824947115,0.05765477,126.95,126.93,10.52441835]
[1763824947823,0.05765477,126.95,126.93,3.2126984]
[1763824948217,3.27765477,126.95,126.93,0.0526984]
[1763824948415,3.27765477,126.95,126.9,7.31171995]
[1763824948925,10.3152,126.93,126.9,10.47171995]
[1763824949116,10.3152,126.93,126.9,3.16]
[1763824949513,10.3152,126.93,126.9,3.2120879]
[1763824951120,10.3152,126.93,126.9,0.0520879]
[1763824951425,3.22,126.92,126.9,0.0520879]
[1763824951625,0.05303782,126.92,126.9,0.0520879]
[1763824952015,0.05303782,126.92,126.9,3.2120879]
[1763824953723,0.05303782,126.92,126.9,17.62050785]
[1763824954026,0.05303782,126.92,126.9,0.0520879]
[1763824954420,0.05303782,126.92,126.9,3.2120879]
[1763824956129,3.19,126.97,126.9,3.2120879]
[1763824956130,16.6,126.96,126.9,3.2120879]
[1763824956520,3.19,126.97,126.91,3.26]
[1763824956921,10.2823,126.98,126.93,3.26]
[1763824957228,10.2823,126.98,126.94,3.31271913]
[1763824957229,0.05042228,126.97,126.94,3.31271913]
[1763824959835,0.05042228,126.97,126.94,10.40711913]
[1763824960034,0.05042228,126.97,126.95,3.23]
[1763824960719,3.10042228,126.97,126.94,3.28271913]
[1763824961131,0.05042228,126.97,126.94,3.28271913]
[1763824961526,0.05042228,126.97,126.94,10.59443908]
[1763824961726,0.05042228,126.97,126.95,3.23]
[1763824961934,0.05042228,126.97,126.96,3.23]
[1763824962533,3.10042228,126.97,126.94,10.59443908]
[1763824962731,3.10042228,126.97,126.94,3.28271913]
[1763824964536,0.05042228,126.97,126.94,3.28271913]
[1763824965639,3.10042228,126.97,126.94,3.28271913]
[1763824966136,0.05042228,126.97,126.94,3.28271913]
[1763824966340,0.05042228,126.97,126.95,3.23]
[1763824966542,0.05042228,126.97,126.96,3.23]
[1763824967845,10.14,127.03,126.99,3.23]
[1763824968842,0.05397291,127.02,127.0,3.28522356]
[1763824972635,0.05397291,127.02,127.0,10.37632356]
[1763824972833,16.6,127.06,127.01,3.23]
[1763824973037,16.6,127.06,127.02,3.23]
[1763824973938,0.05567628,127.05,127.03,3.28815264]
[1763824974644,0.05567628,127.05,127.04,3.23]
[1763824976046,3.05,127.08,127.04,3.23]
[1763824976938,0.05173311,127.07,127.04,3.23]
[1763824978253,0.05173311,127.07,127.04,10.3187]
[1763824978444,0.05173311,127.07,127.05,3.23]
[1763824979555,0.05173311,127.07,127.05,10.3182]
[1763824979738,7.0839,127.13,127.06,3.23]
[1763824980647,0.05288842,127.11,127.08,0.05184489]
[1763824980952,0.05288842,127.11,127.09,3.23]
[1763824982252,16.58,127.14,127.11,3.23]
[1763824982652,3.05,127.17,127.13,3.23]
[1763824982853,3.05,127.2,127.13,110.1923]
[1763824983161,3.05,127.23,127.16,3.23]
[1763824983344,3.05,127.23,127.19,3.23]
[1763824983751,110.0897,127.26,127.19,3.23]
[1763824983752,3.05,127.26,127.19,3.23]
[1763824983946,3.05,127.25,127.21,0.05797721]
[1763824984247,3.05,127.25,127.21,3.28797721]
[1763824984450,3.05,127.25,127.21,0.05797721]
[1763824985540,3.05,127.23,127.21,0.05797721]
[1763824986152,110.0946,127.25,127.21,0.05797721]
[1763824986350,3.12,127.24,127.21,0.05797721]
[1763824987650,3.12,127.23,127.21,0.05797721]
[1763824989160,3.12,127.25,127.21,3.12797721]
[1763824989357,19.7,127.28,127.21,3.12797721]
[1763824991448,3.12,127.27,127.21,3.12797721]
[1763824991654,3.12,127.25,127.21,0.05797721]
[1763824993058,113.2143,127.25,127.21,0.05797721]
[1763824993256,3.12,127.24,127.21,0.05797721]
[1763824993452,129.8026,127.24,127.21,0.05797721]
[1763824993656,3.12,127.23,127.21,0.05797721]
[1763824994667,3.12,127.21,127.15,3.07]
[1763824995661,0.05590154,127.19,127.17,0.05417978]
[1763824997573,0.05590154,127.19,127.17,3.12417978]
[1763824998768,3.17590154,127.19,127.17,0.05417978]
[1763824998965,0.05590154,127.19,127.17,0.05417978]
[1763825003679,6.59280329,127.28,127.18,3.07]
[1763825003889,3.12,127.27,127.18,3.07]
[1763825004690,3.12,127.27,127.21,0.04991793]
[1763825005188,3.12,127.24,127.21,0.04991793]
[1763825005793,10.198,127.24,127.21,0.04991793]
[1763825006091,3.12,127.23,127.21,0.04991793]
[1763825006291,3.12,127.25,127.21,3.11991793]
[1763825006782,3.12,127.25,127.21,0.04991793]
[1763825007181,10.1975,127.25,127.21,0.04991793]
[1763825007386,3.12,127.24,127.21,0.04991793]
[1763825009088,3.12,127.23,127.21,0.04991793]
[1763825009889,3.12,127.22,127.21,0.04991793]
[1763825010295,3.12,127.19,127.15,3.07]
[1763825011504,3.12,127.19,127.16,0.05641214]
[1763825011505,0.05830249,127.18,127.16,0.05641214]
[1763825011994,3.17830249,127.18,127.16,0.05641214]
[1763825012703,3.12,127.17,127.16,0.05641214]
[1763825013287,0.05830249,127.18,127.16,0.05641214]
[1763825013288,3.17830249,127.18,127.16,0.05641214]
[1763825014084,3.12,127.17,127.16,0.05641214]
[1763825014685,3.12,127.15,127.09,10.1558]
[1763825014894,3.12,127.15,127.09,3.07]
[1763825015799,0.05758147,127.13,127.11,3.14663669]
[1763825016004,19.69,127.18,127.11,3.14663669]
[1763825016298,3.03,127.17,127.11,3.14663669]
[1763825016592,3.03,127.16,127.11,3.14663669]
[1763825016993,3.08329201,127.15,127.11,3.14663669]
[1763825018096,3.03,127.14,127.11,0.05663669]
[1763825018994,0.05329201,127.15,127.11,3.24663669]
[1763825019693,0.05329201,127.15,127.12,3.19]
[1763825020790,7.0804,127.2,127.13,3.19]
[1763825021195,3.03,127.21,127.14,3.19]
[1763825021398,3.03,127.21,127.15,3.19]
[1763825021798,0.02074345,127.19,127.18,3.19]
[1763825022501,0.02074345,127.19,127.17,0.05706528]
[1763825022502,3.03,127.24,127.19,3.19]
[1763825023000,126.6672,127.26,127.19,3.19]
[1763825023001,3.03,127.23,127.19,3.19]
[1763825023302,3.03,127.23,127.16,10.45362826]
[1763825023606,3.03,127.23,127.2,0.05989157]
[1763825023995,3.03,127.21,127.2,0.05989157]
[1763825025295,3.03,127.19,127.15,10.45362826]
[1763825026104,10.1103,127.2,127.16,3.19]
[1763825026310,0.05067864,127.18,127.16,10.51377162]
[1763825027208,3.08067864,127.18,127.16,7.32377162]
[1763825027409,3.08067864,127.18,127.16,0.06014336]
[1763825029107,0.05067864,127.18,127.16,10.51377162]
[1763825029306,0.05067864,127.18,127.16,0.06014336]
[1763825029513,0.05067864,127.18,127.16,3.25014336]
[1763825030102,0.05067864,127.18,127.16,10.51377162]
[1763825031515,0.05067864,127.18,127.17,10.45362826]
[1763825031896,0.05067864,127.18,127.17,3.19]
[1763825032094,0.05067864,127.18,127.16,0.06014336]
[1763825032300,0.05067864,127.18,127.16,3.25014336]
[1763825032507,0.05067864,127.18,127.16,10.51377162]
[1763825033896,0.05067864,127.18,127.17,7.26362826]
[1763825034602,0.05067864,127.18,127.16,7.32377162]
[1763825035103,0.05067864,127.18,127.16,10.51377162]
[1763825036205,0.05067864,127.18,127.17,3.19]
[1763825036511,0.05067864,127.18,127.17,10.45362826]
[1763825036903,0.05067864,127.18,127.17,3.19]
[1763825037298,16.58,127.22,127.17,12.96459863]
[1763825037503,3.03,127.22,127.19,10.48560529]
[1763825037702,3.03,127.22,127.19,7.29560529]
[1763825038013,10.1091,127.22,127.18,10.48560529]
[1763825038610,10.1091,127.22,127.19,0.05372499]
[1763825038814,10.1091,127.22,127.19,7.34933028]
[1763825039113,10.1082,127.24,127.2,3.19]
[1763825039310,10.1082,127.24,127.21,0.05608065]
[1763825039507,3.03,127.23,127.21,0.05608065]
[1763825040314,7.0775,127.25,127.22,3.19]
[1763825041209,3.03,127.24,127.21,7.35057165]
[1763825041405,3.03,127.24,127.21,10.54057165]
[1763825041808,3.03,127.23,127.21,0.05608065]
[1763825042117,3.03,127.25,127.21,3.24608065]
[1763825042919,3.03,127.24,127.21,3.24608065]
[1763825043109,10.1079,127.24,127.21,0.05608065]
[1763825044409,3.03,127.22,127.21,0.05608065]
[1763825047219,3.21,127.25,127.21,3.07608065]
[1763825047517,3.21,127.25,127.21,10.37057165]
[1763825048120,10.2873,127.25,127.21,10.37057165]
[1763825049417,3.21,127.25,127.22,3.02]
[1763825049715,3.21,127.26,127.22,3.02]
[1763825049916,3.21,127.26,127.22,10.314491]
[1763825051115,10.2868,127.26,127.22,3.02]
[1763825051314,10.2868,127.26,127.22,10.314491]
[1763825051615,10.2868,127.26,127.23,3.02]
[1763825052016,16.56,127.27,127.24,3.02]
[1763825052215,19.77,127.27,127.24,3.07874575]
[1763825052417,3.21,127.26,127.24,0.05874575]
[1763825054219,10.2868,127.26,127.24,0.05874575]
[1763825054811,3.21,127.25,127.24,0.05874575]
[1763825057326,3.21,127.23,127.2,7.294491]
[1763825057620,3.21,127.28,127.21,10.314491]
[1763825057825,7.0746,127.3,127.26,3.02]
[1763825058016,10.2846,127.3,127.26,3.02]
[1763825058416,0.05535804,127.29,127.27,0.05870306]
[1763825058611,10.34055804,127.29,127.27,0.05870306]
[1763825058814,3.21,127.28,127.27,0.05870306]
[1763825061423,19.77,127.28,127.27,0.05870306]
[1763825061622,3.21,127.26,127.21,10.314491]
[1763825061922,3.21,127.26,127.22,3.02]
[1763825062111,3.21,127.26,127.22,10.314491]
[1763825062516,0.05851041,127.25,127.23,0.05459969]
[1763825062731,0.05851041,127.25,127.23,3.07459969]
[1763825062917,0.05851041,127.25,127.24,3.02]
[1763825063119,0.05851041,127.25,127.23,7.34909069]
[1763825063120,3.26851041,127.25,127.23,0.05459969]
[1763825064527,0.05851041,127.25,127.23,3.07459969]
[1763825064825,0.05851041,127.25,127.24,3.02]
[1763825068831,0.05851041,127.25,127.24,10.314491]
[1763825069026,19.77,127.28,127.25,3.02]
[1763825070032,16.61190989,127.28,127.25,3.02]
[1763825070624,16.61190989,127.28,127.27,3.02]
[1763825070625,0.05190989,127.28,127.27,3.02]
[1763825070820,0.05190989,127.28,127.26,7.34798245]
[1763825071123,0.05190989,127.28,127.26,10.36798245]
[1763825071325,0.05190989,127.28,127.26,3.07349145]
[1763825071530,3.26190989,127.28,127.26,0.05349145]
[1763825072036,3.21,127.27,127.26,0.05349145]
[1763825072935,10.33760989,127.28,127.26,0.05349145]
[1763825074733,3.21,127.27,127.26,0.05349145]
[1763825075336,10.33760989,127.28,127.26,0.05349145]
[1763825076830,0.05190989,127.28,127.26,3.25349145]
[1763825077437,3.10190989,127.28,127.26,0.05349145]
[1763825077941,3.10190989,127.28,127.26,3.06349145]
[1763825078131,3.10190989,127.28,127.26,10.35798245]
[1763825078842,3.10190989,127.28,127.26,7.34798245]
[1763825080838,0.05190989,127.28,127.26,10.35798245]
[1763825081040,3.10190989,127.28,127.26,7.34798245]
[1763825081534,3.10190989,127.28,127.27,3.01]
[1763825081535,0.05190989,127.28,127.27,3.01]
[1763825081741,0.05190989,127.28,127.27,10.304491]
[1763825083644,0.05190989,127.28,127.27,7.294491]
[1763825084241,0.05190989,127.28,127.26,10.35798245]
[1763825084743,0.05190989,127.28,127.27,10.304491]
[1763825084942,0.05190989,127.28,127.27,3.01]
[1763825085138,0.05190989,127.28,127.27,12.78459863]
[1763825085336,10.1234,127.32,127.28,3.01]
[1763825085537,16.56,127.33,127.3,3.01]
[1763825085734,16.56,127.33,127.31,3.01]
[1763825086238,26.6828,127.33,127.3,10.28832472]
[1763825086541,26.6828,127.33,127.3,10.34457985]
[1763825087846,3.05,127.31,127.3,7.33457985]
[1763825088138,3.05,127.31,127.3,0.05625513]
[1763825088342,10.1234,127.32,127.3,0.05625513]
[1763825088733,3.05,127.31,127.3,0.05625513]
[1763825090347,10.1256,127.28,127.27,7.27832472]
[1763825090541,10.1256,127.28,127.26,7.27832472]
[1763825090742,10.1256,127.28,127.25,10.28832472]
[1763825091042,3.05,127.27,127.25,7.27832472]
[1763825091241,3.05,127.26,127.25,7.27832472]
[1763825091438,3.05,127.26,127.25,7.32791128]
[1763825092349,3.05,127.26,127.25,0.04958656]
[1763825094554,3.05,127.24,127.22,7.27832472]
[1763825095342,3.05,127.24,127.22,0.05854788]
[1763825095343,3.10199529,127.24,127.22,0.05854788]
[1763825095840,3.10199529,127.24,127.22,7.3368726]
[1763825096354,0.05199529,127.24,127.23,10.28832472]
[1763825096656,0.05199529,127.24,127.22,10.3468726]
[1763825097350,0.05199529,127.24,127.23,10.28832472]
[1763825099849,0.05199529,127.24,127.23,3.01]
[1763825100051,0.05199529,127.24,127.23,10.29267957]
[1763825100353,0.05199529,127.24,127.23,3.01]
[1763825101051,0.05199529,127.24,127.23,7.2866699]
[1763825101854,0.05199529,127.24,127.22,10.35521778]
[1763825104954,0.05199529,127.24,127.21,9.77459863]
[1763825104955,3.05,127.23,127.21,7.442e-05]
[1763825105147,3.05,127.2,127.17,9.57289109]
[1763825105348,3.05,127.2,127.14,3.01]
[1763825105660,7.0813,127.18,127.14,3.01]
[1763825105960,0.04960803,127.17,127.15,3.34066624]
[1763825106554,3.11,127.23,127.17,3.29]
[1763825106861,3.11,127.23,127.18,3.29]
[1763825107158,19.67,127.25,127.18,3.29]
[1763825107359,7.078,127.24,127.18,3.29]
[1763825107655,0.0520653,127.22,127.21,3.29]
[1763825110158,5.48286768,127.28,127.22,3.29]
[1763825110351,110.0378,127.32,127.24,3.29]
[1763825110352,19.67,127.29,127.24,3.29]
[1763825110556,3.11,127.28,127.24,3.29]
[1763825110760,10.186,127.28,127.24,3.29]
[1763825110959,16.56,127.29,127.24,3.29]
[1763825111148,0.055543,127.28,127.26,3.29]
[1763825113071,3.165543,127.28,127.25,0.05129132]
[1763825113367,0.055543,127.28,127.25,3.34129132]
[1763825113557,0.055543,127.28,127.27,3.29]
[1763825113955,3.11,127.36,127.27,3.29]
[1763825114157,3.11,127.36,127.29,3.29]
[1763825114363,3.11,127.36,127.31,3.29]
[1763825114966,3.11,127.36,127.32,0.05113637]
[1763825115160,3.13341468,127.35,127.32,3.34113637]
[1763825115361,0.02341468,127.35,127.32,3.34113637]
[1763825116268,0.02341468,127.35,127.33,3.29]
[1763825117570,19.67,127.4,127.35,3.29]
[1763825117870,3.11,127.39,127.35,3.29]
[1763825118173,19.67,127.4,127.35,3.29]
[1763825118358,16.56,127.4,127.35,3.29]
[1763825118564,16.56,127.4,127.37,3.29]
[1763825119262,19.67,127.4,127.36,5.71598638]
[1763825119463,19.67,127.4,127.37,3.29]
[1763825119673,16.56,127.4,127.37,3.29]
[1763825120172,16.56,127.4,127.36,3.3431187]
[1763825120173,19.67,127.4,127.36,3.3431187]
[1763825120473,3.11,127.38,127.36,0.0531187]
[1763825120770,113.0893,127.38,127.36,0.0531187]
[1763825120972,5.48286768,127.37,127.36,0.0531187]
[1763825123469,7.0703,127.38,127.36,3.3431187]
[1763825123674,10.1803,127.38,127.36,0.0531187]
[1763825123868,3.11,127.37,127.36,0.0531187]
[1763825124874,19.65,127.37,127.36,0.0531187]
[1763825129986,3.11,127.36,127.27,9.86997827]
[1763825130174,10.1832,127.33,127.27,3.29]
[1763825130480,26.7232,127.33,127.27,3.29]
[1763825130880,10.1835,127.32,127.27,3.29]
[1763825131075,3.1631187,127.31,127.28,0.05452594]
[1763825131271,3.11,127.37,127.29,3.29]
[1763825132077,3.11,127.37,127.32,3.29]
[1763825132280,3.11,127.37,127.33,0.04974857]
[1763825132585,3.11,127.37,127.33,3.33974857]
[1763825132885,10.1808,127.37,127.33,0.04974857]
[1763825133086,3.11,127.36,127.33,0.04974857]
[1763825133486,3.11,127.34,127.33,0.04974857]
[1763825134281,7.0735,127.32,127.28,3.29]
[1763825134585,3.11,127.32,127.28,3.29]
[1763825134782,7.0746,127.3,127.26,3.29]
[1763825135388,0.04974857,127.29,127.27,3.33973919]
[1763825136179,3.02,127.35,127.27,3.33973919]
[1763825136380,3.02,127.38,127.3,3.23]
[1763825136588,3.02,127.38,127.32,3.23]
[1763825137189,16.54,127.4,127.32,3.23]
[1763825137491,19.76,127.4,127.35,3.23]
[1763825137886,3.22,127.39,127.35,3.23]
[1763825138389,3.22,127.38,127.35,3.23]
[1763825138683,26.8292,127.4,127.35,3.23]
[1763825139481,7.0698,127.39,127.35,3.23]
[1763825139683,10.2898,127.39,127.35,3.23]
[1763825139985,7.0698,127.39,127.35,3.23]
[1763825140986,23.6085,127.41,127.35,3.23]
[1763825141182,19.76,127.41,127.37,3.20480297]
[1763825141385,10.2876,127.43,127.37,3.20480297]
[1763825141685,19.76,127.43,127.37,3.20480297]
[1763825142294,3.22,127.41,127.37,0.05480297]
[1763825142991,7.0691,127.4,127.37,0.05480297]
[1763825145290,7.0679,127.42,127.37,3.20480297]
[1763825145489,10.2879,127.42,127.37,3.20480297]
[1763825147586,3.22,127.42,127.37,3.20480297]
[1763825147784,16.54,127.43,127.37,3.20480297]
[1763825148197,19.76,127.43,127.37,3.20480297]
[1763825148589,7.0685,127.41,127.37,3.20480297]
[1763825149084,7.069,127.4,127.37,3.20480297]
[1763825149289,3.22,127.4,127.37,0.05480297]
[1763825149690,3.22,127.42,127.37,3.20480297]
[1763825149898,19.76,127.43,127.37,3.20480297]
[1763825150296,7.0685,127.41,127.37,3.20480297]
[1763825152297,7.0676,127.43,127.38,3.15]
[1763825152697,10.2876,127.43,127.38,3.15]
[1763825152898,10.2879,127.42,127.38,3.15]
[1763825153100,10.2879,127.42,127.39,3.20900436]
[1763825153503,7.0679,127.42,127.39,3.20900436]
[1763825155495,10.2879,127.42,127.39,3.20900436]
[1763825156105,10.2886,127.41,127.39,0.05900436]
[1763825157105,7.0686,127.41,127.39,0.05900436]
[1763825157701,3.22,127.41,127.39,0.05900436]
[1763825158809,10.2888,127.41,127.39,0.05900436]
[1763825159813,3.22,127.43,127.39,3.20900436]
[1763825160703,129.673,127.46,127.39,3.20900436]
[1763825160905,2.36568269,127.45,127.39,3.20900436]
[1763825161104,7.0666,127.45,127.4,3.15]
[1763825161306,109.8894,127.49,127.41,3.15]
[1763825161511,3.22,127.5,127.45,3.15]
[1763825161809,3.22,127.5,127.44,2.41789682]
[1763825161810,3.22,127.47,127.44,3.20221413]
[1763825162215,3.22,127.51,127.44,3.20221413]
[1763825162401,3.22,127.58,127.51,3.15]
[1763825162609,3.22,127.58,127.53,0.05816284]
[1763825162801,10.2792,127.58,127.53,3.20816284]
[1763825163008,3.22,127.55,127.53,0.05816284]
[1763825163212,16.56,127.6,127.53,3.20816284]
[1763825163415,10.2775,127.61,127.55,3.20987859]
[1763825164213,109.7614,127.64,127.55,3.20987859]
[1763825164214,23.96824302,127.72,127.63,2.84]
[1763825164425,6.55784292,127.69,127.66,7.174e-05]
[1763825164612,3.22,127.66,127.58,2.16]
[1763825164914,3.22,127.65,127.55,2.22]
[1763825165113,3.22,127.65,127.56,2.22]
[1763825165318,3.22,127.6,127.52,2.22]
[1763825165522,3.22,127.56,127.55,0.05220194]
[1763825165813,3.09,127.55,127.46,2.22]
[1763825166208,3.09,127.55,127.47,2.22]
[1763825166802,0.06042561,127.52,127.5,2.27667988]
[1763825167004,0.05005609,127.52,127.5,2.27907728]
[1763825167415,0.05005609,127.52,127.5,64.27907728]
[1763825167619,3.09,127.59,127.51,2.22]
[1763825167813,3.09,127.57,127.48,2.22]
[1763825168411,3.09,127.56,127.48,2.22]
[1763825168604,3.14880064,127.53,127.51,0.05526444]
[1763825169614,113.00070064,127.53,127.44,18.94]
[1763825169817,3.09,127.52,127.44,2.22]
[1763825170413,3.09,127.55,127.45,2.22]
[1763825170611,0.04962829,127.51,127.49,0.05994201]
[1763825171717,3.13962829,127.51,127.49,0.05994201]
[1763825174723,0.04962829,127.51,127.49,0.05994201]
[1763825175422,3.13962829,127.51,127.49,0.05994201]
[1763825177318,3.13962829,127.51,127.42,76.21842661]
[1763825177523,3.09,127.53,127.46,2.28]
[1763825178533,0.05690768,127.51,127.48,0.05349755]
[1763825179830,0.05690768,127.51,127.48,2.33349755]
[1763825181445,0.05690768,127.51,127.48,9.39759755]
[1763825181647,3.09,127.56,127.49,2.28]
[1763825182544,3.14742931,127.54,127.51,0.05640727]
[1763825185843,10.20882931,127.54,127.51,0.05640727]
[1763825186148,3.09,127.53,127.45,2.28]
[1763825186750,3.09,127.52,127.45,2.28]
[1763825187140,3.14779074,127.5,127.47,0.05725314]
[1763825189249,3.14779074,127.5,127.42,2.34]
[1763825189446,3.09,127.5,127.42,2.34]
[1763825189848,3.09,127.49,127.42,2.34]
[1763825190349,0.0601781,127.47,127.44,0.05520348]
[1763825191949,3.1501781,127.47,127.44,0.05520348]
[1763825192658,113.0545781,127.47,127.44,0.05520348]
[1763825192840,3.09,127.46,127.44,0.05520348]
[1763825194044,3.09,127.45,127.36,9.55769214]
[1763825194751,3.09,127.45,127.37,9.55769214]
[1763825194952,0.05321769,127.42,127.4,0.05795197]
[1763825196240,0.05321769,127.42,127.4,2.45795197]
[1763825196644,0.05321769,127.42,127.4,0.05795197]
[1763825197249,10.32121769,127.42,127.4,0.05795197]
[1763825197548,3.2,127.4,127.33,7.16769214]
[1763825197749,3.2,127.39,127.31,9.61769214]
[1763825197949,3.2,127.39,127.31,2.45]
[1763825198148,3.2,127.37,127.31,2.45]
[1763825198348,0.05199655,127.35,127.33,0.05662031]
[1763825198650,3.25199655,127.35,127.33,0.05662031]
[1763825200949,0.05199655,127.35,127.33,0.05662031]
[1763825201355,3.25199655,127.35,127.33,0.05662031]
[1763825203753,3.2,127.34,127.33,0.05662031]
[1763825204061,3.2,127.34,127.26,9.61769214]
[1763825204248,3.2,127.34,127.26,2.45]
[1763825204452,10.2736,127.32,127.26,2.45]
[1763825204754,3.2,127.31,127.26,2.45]
[1763825205153,0.05678329,127.3,127.27,0.05378017]
[1763825205649,0.05678329,127.3,127.27,2.56378017]
[1763825205851,0.05678329,127.3,127.28,2.51]
[1763825206352,0.05678329,127.3,127.27,0.05378017]
[1763825206663,0.05678329,127.3,127.27,2.56378017]
[1763825207649,0.05678329,127.3,127.29,2.51]
[1763825213960,0.05678329,127.3,127.27,2.56378017]
[1763825214454,3.25678329,127.3,127.27,2.56378017]
[1763825214658,3.25678329,127.3,127.27,0.05378017]
[1763825215054,0.05678329,127.3,127.27,2.56378017]
[1763825216353,3.25678329,127.3,127.27,0.05378017]
[1763825216548,113.2663,127.28,127.21,2.51]
[1763825216763,3.2,127.26,127.18,2.56]
[1763825216964,3.2,127.24,127.15,2.56]
[1763825217763,0.05899106,127.21,127.18,2.61556943]
[1763825218666,3.25899106,127.21,127.18,0.05556943]
[1763825219550,10.33879106,127.21,127.18,0.05556943]
[1763825219766,3.2,127.2,127.18,0.05556943]
[1763825220354,3.2,127.2,127.12,16.68]
[1763825220355,3.2,127.19,127.12,16.68]
[1763825220552,3.2,127.19,127.11,2.56]
[1763825221163,3.2,127.23,127.14,2.62]
[1763825221359,3.2,127.22,127.14,2.62]
[1763825221664,3.25606209,127.2,127.17,0.05344519]
[1763825222567,3.2,127.18,127.17,0.05344519]
[1763825222964,0.05606209,127.2,127.17,2.67344519]
[1763825223667,3.25606209,127.2,127.17,0.05344519]
[1763825225665,0.05606209,127.2,127.17,2.67344519]
[1763825226571,3.07606209,127.2,127.17,0.05344519]
[1763825226960,0.05606209,127.2,127.17,2.67344519]